[Event "January 9 Early 2024"]
[Site "https://www.chess.com"]
[Date "2024.01.11"]
[Round "4"]
[White "Papasimakopoulos, Alexandros"]
[Black "Keymer, Vincent"]
[Result "0-1"]
[Board "191"]
[TimeControl "180+1"]
[WhiteFideId "4244125"]
[BlackFideId "12940690"]
[WhiteElo "2648"]
[BlackElo "3022"]
[WhiteTeam "GRE"]
[BlackTeam "GER"]
[WhiteClock "0:00:27"]
[BlackClock "0:00:22"]

1. d4 {[%clk 0:03:00]}  Nf6 {[%clk 0:02:57]} 2. c4 {[%clk 0:03:01]}  e6 {[%clk 0:02:58]} 3. Nc3 {[%clk 0:03:01]}  Bb4 {[%clk 0:02:58]} 4. Qc2 {[%clk 0:03:01]}  c5 {[%clk 0:02:58]} 5. dxc5 {[%clk 0:03:00]}  O-O {[%clk 0:02:58]} 6. Nf3 {[%clk 0:03:00]}  Na6 {[%clk 0:02:57]} 7. g3 {[%clk 0:02:59]}  Nxc5 {[%clk 0:02:57]} 8. Bg2 {[%clk 0:03:00]}  Nce4 {[%clk 0:02:57]} 9. Bd2 {[%clk 0:02:59]}  Nxd2 {[%clk 0:02:51]} 10. Nxd2 {[%clk 0:03:00]}  a6 {[%clk 0:02:47]} 11. O-O {[%clk 0:02:57]}  Qc7 {[%clk 0:02:47]} 12. a3 {[%clk 0:02:53]}  Be7 {[%clk 0:02:47]} 13. Rfd1 {[%clk 0:02:50]}  Rb8 {[%clk 0:02:43]} 14. Rac1 {[%clk 0:02:49]}  b6 {[%clk 0:02:36]} 15. Nce4 {[%clk 0:02:45]}  d6 {[%clk 0:02:30]} 16. Nxf6+ {[%clk 0:02:45]}  Bxf6 {[%clk 0:02:31]} 17. Ne4 {[%clk 0:02:44]}  Be7 {[%clk 0:02:32]} 18. Qd3 {[%clk 0:02:41]}  Rd8 {[%clk 0:02:31]} 19. Nc3 {[%clk 0:02:37]}  Bd7 {[%clk 0:02:26]} 20. a4 {[%clk 0:02:32]}  h6 {[%clk 0:02:16]} 21. b3 {[%clk 0:02:32]}  Be8 {[%clk 0:02:16]} 22. Rc2 {[%clk 0:02:25]}  Qc5 {[%clk 0:02:10]} 23. Ne4 {[%clk 0:02:22]}  Qb4 {[%clk 0:02:09]} 24. Qc3 {[%clk 0:02:15]}  Qxc3 {[%clk 0:02:09]} 25. Rxc3 {[%clk 0:02:16]}  f5 {[%clk 0:02:08]} 26. Nd2 {[%clk 0:02:13]}  b5 {[%clk 0:02:08]} 27. cxb5 {[%clk 0:02:07]}  axb5 {[%clk 0:02:08]} 28. axb5 {[%clk 0:02:07]}  d5 {[%clk 0:02:05]} 29. e3 {[%clk 0:02:00]}  Bxb5 {[%clk 0:01:58]} 30. Bf1 {[%clk 0:01:57]}  Bb4 {[%clk 0:01:57]} 31. Rc7 {[%clk 0:01:56]}  Bd6 {[%clk 0:01:37]} 32. Ra7 {[%clk 0:01:53]}  Be8 {[%clk 0:01:32]} 33. Rc1 {[%clk 0:01:49]}  Rdc8 {[%clk 0:01:28]} 34. Rxc8 {[%clk 0:01:48]}  Rxc8 {[%clk 0:01:28]} 35. Ra6 {[%clk 0:01:47]}  Rd8 {[%clk 0:01:26]} 36. Nf3 {[%clk 0:01:45]}  e5 {[%clk 0:01:21]} 37. Nh4 {[%clk 0:01:42]}  g6 {[%clk 0:01:17]} 38. b4 {[%clk 0:01:41]}  Kg7 {[%clk 0:00:58]} 39. b5 {[%clk 0:01:41]}  Bc5 {[%clk 0:00:57]} 40. Nf3 {[%clk 0:01:38]}  e4 {[%clk 0:00:46]} 41. Nd4 {[%clk 0:01:30]}  Bxd4 {[%clk 0:00:46]} 42. exd4 {[%clk 0:01:31]}  Rc8 {[%clk 0:00:47]} 43. Ra1 {[%clk 0:01:30]}  Rb8 {[%clk 0:00:42]} 44. Ra5 {[%clk 0:01:11]}  g5 {[%clk 0:00:36]} 45. Be2 {[%clk 0:01:11]}  f4 {[%clk 0:00:35]} 46. Ra7+ {[%clk 0:00:44]}  Kf6 {[%clk 0:00:26]} 47. Ra6+ {[%clk 0:00:44]}  Ke7 {[%clk 0:00:26]} 48. gxf4 {[%clk 0:00:41]}  gxf4 {[%clk 0:00:26]} 49. Rxh6 {[%clk 0:00:33]}  f3 {[%clk 0:00:21]} 50. Bf1 {[%clk 0:00:33]}  Bxb5 {[%clk 0:00:21]} 51. Bxb5 {[%clk 0:00:32]}  Rxb5 {[%clk 0:00:22]} 52. h4 {[%clk 0:00:30]}  Rb1+ {[%clk 0:00:21]} 53. Kh2 {[%clk 0:00:30]}  e3 {[%clk 0:00:22]} 54. fxe3 {[%clk 0:00:27]}  f2 {[%clk 0:00:22]} 0-1

[Event "January 9 Early 2024"]
[Site "https://www.chess.com"]
[Date "2024.01.11"]
[Round "4"]
[White "Ozates, Tuna"]
[Black "Saha, Ananda"]
[Result "1-0"]
[Board "193"]
[TimeControl "180+1"]
[WhiteFideId "6354521"]
[BlackFideId "2619644"]
[WhiteElo "2671"]
[BlackElo "2475"]
[WhiteTeam "TUR"]
[BlackTeam "CAN"]
[WhiteClock "0:00:28"]
[BlackClock "0:00:04"]

1. e4 {[%clk 0:03:00]}  e6 {[%clk 0:02:58]} 2. d4 {[%clk 0:03:00]}  d5 {[%clk 0:02:59]} 3. Nd2 {[%clk 0:03:01]}  Nf6 {[%clk 0:02:59]} 4. e5 {[%clk 0:03:00]}  Nfd7 {[%clk 0:02:59]} 5. f4 {[%clk 0:03:01]}  c5 {[%clk 0:03:00]} 6. c3 {[%clk 0:03:01]}  Nc6 {[%clk 0:03:01]} 7. Ndf3 {[%clk 0:03:00]}  a5 {[%clk 0:03:01]} 8. Bd3 {[%clk 0:02:59]}  a4 {[%clk 0:03:01]} 9. a3 {[%clk 0:02:59]}  cxd4 {[%clk 0:03:02]} 10. cxd4 {[%clk 0:03:00]}  Nb6 {[%clk 0:03:02]} 11. Ne2 {[%clk 0:02:59]}  Na5 {[%clk 0:03:02]} 12. O-O {[%clk 0:02:55]}  Bd7 {[%clk 0:03:02]} 13. f5 {[%clk 0:02:49]}  exf5 {[%clk 0:03:01]} 14. Bg5 {[%clk 0:02:49]}  Be7 {[%clk 0:02:58]} 15. Bxe7 {[%clk 0:02:49]}  Qxe7 {[%clk 0:02:58]} 16. Nf4 {[%clk 0:02:49]}  Nb3 {[%clk 0:02:45]} 17. Rb1 {[%clk 0:02:47]}  O-O {[%clk 0:02:02]} 18. Qe1 {[%clk 0:02:39]}  Rac8 {[%clk 0:01:53]} 19. Qg3 {[%clk 0:02:39]}  Kh8 {[%clk 0:01:36]} 20. Nh5 {[%clk 0:02:31]}  Rg8 {[%clk 0:01:32]} 21. Rbe1 {[%clk 0:02:19]}  Be6 {[%clk 0:01:32]} 22. Kh1 {[%clk 0:01:53]}  Nd7 {[%clk 0:01:32]} 23. Ng5 {[%clk 0:01:50]}  h6 {[%clk 0:01:26]} 24. Nf3 {[%clk 0:01:22]}  g6 {[%clk 0:01:17]} 25. Qf4 {[%clk 0:01:13]}  Kh7 {[%clk 0:01:13]} 26. Ng3 {[%clk 0:01:10]}  Nf8 {[%clk 0:00:46]} 27. Nh4 {[%clk 0:01:06]}  g5 {[%clk 0:00:33]} 28. Nhxf5 {[%clk 0:00:58]}  gxf4 {[%clk 0:00:24]} 29. Nxe7+ {[%clk 0:00:58]}  Kh8 {[%clk 0:00:24]} 30. Rxf4 {[%clk 0:00:58]}  Rg4 {[%clk 0:00:12]} 31. Rxg4 {[%clk 0:00:56]}  Bxg4 {[%clk 0:00:13]} 32. Nxc8 {[%clk 0:00:57]}  Bxc8 {[%clk 0:00:14]} 33. Rf1 {[%clk 0:00:44]}  Be6 {[%clk 0:00:11]} 34. Ne2 {[%clk 0:00:34]}  Kg7 {[%clk 0:00:09]} 35. h3 {[%clk 0:00:34]}  Nd7 {[%clk 0:00:07]} 36. g4 {[%clk 0:00:34]}  Nb8 {[%clk 0:00:08]} 37. Bc2 {[%clk 0:00:32]}  Nc6 {[%clk 0:00:05]} 38. Bxb3 {[%clk 0:00:32]}  axb3 {[%clk 0:00:06]} 39. Rf3 {[%clk 0:00:32]}  Na5 {[%clk 0:00:06]} 40. Nc1 {[%clk 0:00:30]}  Nc4 {[%clk 0:00:04]} 41. Rxb3 {[%clk 0:00:30]}  Nd2 {[%clk 0:00:03]} 42. Rxb7 {[%clk 0:00:29]}  Nf3 {[%clk 0:00:03]} 43. Ne2 {[%clk 0:00:28]}  Kg6 {[%clk 0:00:03]} 44. a4 {[%clk 0:00:27]}  h5 {[%clk 0:00:03]} 45. gxh5+ {[%clk 0:00:26]}  Kxh5 {[%clk 0:00:03]} 46. Nf4+ {[%clk 0:00:26]}  Kg5 {[%clk 0:00:03]} 47. Nxe6+ {[%clk 0:00:27]}  fxe6 {[%clk 0:00:04]} 48. a5 {[%clk 0:00:27]}  Nxd4 {[%clk 0:00:04]} 49. a6 {[%clk 0:00:28]} 1-0

[Event "January 9 Early 2024"]
[Site "https://www.chess.com"]
[Date "2024.01.11"]
[Round "4"]
[White "Kadric, Denis"]
[Black "Makarian, Rudik"]
[Result "0-1"]
[Board "194"]
[TimeControl "180+1"]
[WhiteFideId "14403803"]
[BlackFideId "44105681"]
[WhiteElo "2905"]
[BlackElo "3093"]
[WhiteTeam "MNE"]
[BlackTeam "FID"]
[WhiteClock "0:00:03"]
[BlackClock "0:00:06"]

1. e4 {[%clk 0:02:56]}  c5 {[%clk 0:02:59]} 2. Nc3 {[%clk 0:02:53]}  Nc6 {[%clk 0:02:59]} 3. Nge2 {[%clk 0:02:53]}  d6 {[%clk 0:02:59]} 4. d4 {[%clk 0:02:53]}  cxd4 {[%clk 0:03:00]} 5. Nxd4 {[%clk 0:02:54]}  Nf6 {[%clk 0:03:00]} 6. Bc4 {[%clk 0:02:54]}  e6 {[%clk 0:02:59]} 7. Be3 {[%clk 0:02:47]}  Bd7 {[%clk 0:02:59]} 8. Bb3 {[%clk 0:02:46]}  Na5 {[%clk 0:02:56]} 9. f4 {[%clk 0:02:44]}  h5 {[%clk 0:02:45]} 10. h3 {[%clk 0:02:41]}  Qb8 {[%clk 0:02:15]} 11. Qf3 {[%clk 0:02:29]}  Be7 {[%clk 0:01:57]} 12. O-O-O {[%clk 0:02:25]}  Nxb3+ {[%clk 0:01:57]} 13. axb3 {[%clk 0:02:24]}  h4 {[%clk 0:01:56]} 14. Rhe1 {[%clk 0:02:14]}  O-O {[%clk 0:01:36]} 15. Bf2 {[%clk 0:02:06]}  Nh7 {[%clk 0:01:28]} 16. Qh5 {[%clk 0:01:54]}  a5 {[%clk 0:01:26]} 17. Bxh4 {[%clk 0:01:50]}  Bxh4 {[%clk 0:01:21]} 18. Qxh4 {[%clk 0:01:50]}  a4 {[%clk 0:01:21]} 19. bxa4 {[%clk 0:01:39]}  Bxa4 {[%clk 0:01:22]} 20. f5 {[%clk 0:01:39]}  e5 {[%clk 0:01:16]} 21. Nf3 {[%clk 0:00:48]}  Bc6 {[%clk 0:01:12]} 22. Ng5 {[%clk 0:00:39]}  Nf6 {[%clk 0:01:00]} 23. Rd3 {[%clk 0:00:39]}  Ra1+ {[%clk 0:00:56]} 24. Kd2 {[%clk 0:00:40]}  Rxe1 {[%clk 0:00:50]} 25. Kxe1 {[%clk 0:00:40]}  Qa7 {[%clk 0:00:51]} 26. Rg3 {[%clk 0:00:37]}  Qg1+ {[%clk 0:00:47]} 27. Ke2 {[%clk 0:00:26]}  Qc1 {[%clk 0:00:36]} 28. Nf3 {[%clk 0:00:26]}  Qf4 {[%clk 0:00:19]} 29. Kd3 {[%clk 0:00:14]}  d5 {[%clk 0:00:11]} 30. exd5 {[%clk 0:00:11]}  Qxf5+ {[%clk 0:00:06]} 31. Kc4 {[%clk 0:00:06]}  Bxd5+ {[%clk 0:00:05]} 32. Nxd5 {[%clk 0:00:06]}  Rc8+ {[%clk 0:00:06]} 33. Kb4 {[%clk 0:00:06]}  Nxd5+ {[%clk 0:00:07]} 34. Ka3 {[%clk 0:00:06]}  Qxc2 {[%clk 0:00:06]} 35. Nxe5 {[%clk 0:00:03]}  Ra8+ {[%clk 0:00:06]} 0-1

[Event "January 9 Early 2024"]
[Site "https://www.chess.com"]
[Date "2024.01.11"]
[Round "4"]
[White "Souleidis, Georgios"]
[Black "Liu, Casper"]
[Result "0-1"]
[Board "195"]
[TimeControl "180+1"]
[WhiteFideId "4206827"]
[BlackFideId "1454153"]
[WhiteElo "2634"]
[BlackElo "2485"]
[WhiteTeam "GRE"]
[BlackTeam "DEN"]
[WhiteClock "0:00:09"]
[BlackClock "0:00:02"]

1. e4 {[%clk 0:03:00]}  g6 {[%clk 0:03:00]} 2. d4 {[%clk 0:02:59]}  Bg7 {[%clk 0:03:01]} 3. Nc3 {[%clk 0:02:57]}  d6 {[%clk 0:03:01]} 4. Nf3 {[%clk 0:02:57]}  Nf6 {[%clk 0:03:01]} 5. Be2 {[%clk 0:02:58]}  O-O {[%clk 0:03:02]} 6. O-O {[%clk 0:02:58]}  Bg4 {[%clk 0:03:02]} 7. h3 {[%clk 0:02:57]}  Bxf3 {[%clk 0:03:02]} 8. Bxf3 {[%clk 0:02:58]}  Nc6 {[%clk 0:03:03]} 9. Ne2 {[%clk 0:02:54]}  Re8 {[%clk 0:02:55]} 10. Be3 {[%clk 0:02:50]}  e6 {[%clk 0:02:35]} 11. c3 {[%clk 0:02:47]}  h6 {[%clk 0:02:33]} 12. Qd2 {[%clk 0:02:46]}  g5 {[%clk 0:02:31]} 13. Rad1 {[%clk 0:02:30]}  d5 {[%clk 0:02:18]} 14. e5 {[%clk 0:02:30]}  Nd7 {[%clk 0:02:17]} 15. Ng3 {[%clk 0:02:20]}  f5 {[%clk 0:02:14]} 16. exf6 {[%clk 0:02:18]}  Qxf6 {[%clk 0:02:09]} 17. Nh5 {[%clk 0:02:15]}  Qg6 {[%clk 0:02:09]} 18. Nxg7 {[%clk 0:02:15]}  Kxg7 {[%clk 0:02:09]} 19. Qe2 {[%clk 0:02:11]}  Nf6 {[%clk 0:02:05]} 20. Qb5 {[%clk 0:02:03]}  Rab8 {[%clk 0:02:00]} 21. Rfe1 {[%clk 0:01:59]}  Ne7 {[%clk 0:01:49]} 22. Bc1 {[%clk 0:01:48]}  Nf5 {[%clk 0:01:45]} 23. Qa5 {[%clk 0:01:35]}  c6 {[%clk 0:01:03]} 24. Qxa7 {[%clk 0:01:30]}  Nh4 {[%clk 0:01:01]} 25. Be2 {[%clk 0:01:21]}  g4 {[%clk 0:00:42]} 26. Bd3 {[%clk 0:01:09]}  Ne4 {[%clk 0:00:39]} 27. Bxe4 {[%clk 0:00:16]}  dxe4 {[%clk 0:00:40]} 28. Bf4 {[%clk 0:00:16]}  gxh3 {[%clk 0:00:39]} 29. g3 {[%clk 0:00:15]}  Nf3+ {[%clk 0:00:38]} 30. Kh1 {[%clk 0:00:15]}  Nxe1 {[%clk 0:00:17]} 31. Rxe1 {[%clk 0:00:16]}  Qg4 {[%clk 0:00:17]} 32. Kh2 {[%clk 0:00:13]}  Qf3 {[%clk 0:00:10]} 33. Kxh3 {[%clk 0:00:13]}  Rbd8 {[%clk 0:00:03]} 34. Qxb7+ {[%clk 0:00:12]}  Kg6 {[%clk 0:00:04]} 35. Qxc6 {[%clk 0:00:12]}  Rd5 {[%clk 0:00:04]} 36. Qxe8+ {[%clk 0:00:12]}  Kf6 {[%clk 0:00:04]} 37. Qf8+ {[%clk 0:00:11]}  Kg6 {[%clk 0:00:04]} 38. Qxh6+ {[%clk 0:00:11]}  Kf7 {[%clk 0:00:04]} 39. Qh7+ {[%clk 0:00:08]}  Ke8 {[%clk 0:00:02]} 40. Qxe4 {[%clk 0:00:09]}  Rh5# {[%clk 0:00:02]} 0-1

[Event "January 9 Early 2024"]
[Site "https://www.chess.com"]
[Date "2024.01.11"]
[Round "4"]
[White "Tqebuchava, Zurab"]
[Black "Copeland, Samuel"]
[Result "0-1"]
[Board "199"]
[TimeControl "180+1"]
[WhiteFideId "13601113"]
[BlackFideId "2007347"]
[WhiteElo "2124"]
[BlackElo "2310"]
[WhiteTeam "GEO"]
[BlackTeam "USA"]
[WhiteClock "0:00:03"]
[BlackClock "0:00:06"]

1. e4 {[%clk 0:03:00]}  c6 {[%clk 0:02:49]} 2. d4 {[%clk 0:03:00]}  d5 {[%clk 0:02:48]} 3. exd5 {[%clk 0:03:00]}  cxd5 {[%clk 0:02:48]} 4. Bd3 {[%clk 0:03:00]}  Nc6 {[%clk 0:02:46]} 5. c3 {[%clk 0:02:58]}  Qc7 {[%clk 0:02:46]} 6. h3 {[%clk 0:02:57]}  Nf6 {[%clk 0:02:44]} 7. Nf3 {[%clk 0:02:55]}  e6 {[%clk 0:02:42]} 8. O-O {[%clk 0:02:48]}  Bd6 {[%clk 0:02:42]} 9. Qe2 {[%clk 0:02:47]}  Bd7 {[%clk 0:02:40]} 10. Re1 {[%clk 0:02:47]}  O-O-O {[%clk 0:02:38]} 11. a4 {[%clk 0:02:48]}  h6 {[%clk 0:02:37]} 12. Na3 {[%clk 0:02:39]}  a6 {[%clk 0:02:28]} 13. b4 {[%clk 0:02:38]}  Ne7 {[%clk 0:02:17]} 14. b5 {[%clk 0:01:56]}  a5 {[%clk 0:02:14]} 15. c4 {[%clk 0:01:56]}  Bb4 {[%clk 0:02:00]} 16. Bd2 {[%clk 0:01:49]}  dxc4 {[%clk 0:01:49]} 17. Nxc4 {[%clk 0:01:43]}  Ned5 {[%clk 0:01:46]} 18. Bxb4 {[%clk 0:01:34]}  axb4 {[%clk 0:01:41]} 19. Rec1 {[%clk 0:01:15]}  Nc3 {[%clk 0:01:30]} 20. Qb2 {[%clk 0:01:11]}  Nfd5 {[%clk 0:01:21]} 21. b6 {[%clk 0:01:03]}  Qf4 {[%clk 0:01:16]} 22. a5 {[%clk 0:00:55]}  Bb5 {[%clk 0:01:12]} 23. Nfe5 {[%clk 0:00:47]}  Qxd4 {[%clk 0:01:05]} 24. Bf1 {[%clk 0:00:31]}  Kb8 {[%clk 0:00:50]} 25. Nxf7 {[%clk 0:00:30]}  Bxc4 {[%clk 0:00:48]} 26. Nxh8 {[%clk 0:00:25]}  Bxf1 {[%clk 0:00:39]} 27. Rxf1 {[%clk 0:00:22]}  Rxh8 {[%clk 0:00:37]} 28. a6 {[%clk 0:00:21]}  Qxb6 {[%clk 0:00:34]} 29. a7+ {[%clk 0:00:20]}  Ka8 {[%clk 0:00:33]} 30. Qd2 {[%clk 0:00:19]}  Nf4 {[%clk 0:00:30]} 31. Qd7 {[%clk 0:00:15]}  Qc6 {[%clk 0:00:24]} 32. Qxg7 {[%clk 0:00:13]}  Qe8 {[%clk 0:00:17]} 33. Rfe1 {[%clk 0:00:10]}  Rg8 {[%clk 0:00:16]} 34. Qd4 {[%clk 0:00:06]}  Rxg2+ {[%clk 0:00:13]} 35. Kh1 {[%clk 0:00:06]}  Rg8 {[%clk 0:00:12]} 36. Qxf4 {[%clk 0:00:06]}  Qc6+ {[%clk 0:00:12]} 37. f3 {[%clk 0:00:05]}  Nd5 {[%clk 0:00:10]} 38. Qe4 {[%clk 0:00:04]}  Qd6 {[%clk 0:00:06]} 39. Qxe6 {[%clk 0:00:03]}  Qg3 {[%clk 0:00:06]} 40. Qe7 {[%clk 0:00:03]}  Qg2# {[%clk 0:00:06]} 0-1

[Event "January 9 Early 2024"]
[Site "https://www.chess.com"]
[Date "2024.01.11"]
[Round "4"]
[White "Mesquita, Eduardo Barbosa"]
[Black "Olcayoz, Gizem"]
[Result "1-0"]
[Board "204"]
[TimeControl "180+1"]
[WhiteFideId "22757163"]
[BlackFideId "6301444"]
[WhiteElo "2433"]
[BlackElo "2001"]
[WhiteTeam "BRA"]
[BlackTeam "TUR"]
[WhiteClock "0:00:04"]
[BlackClock "0:00:02"]

1. e4 {[%clk 0:03:00]}  e6 {[%clk 0:03:00]} 2. d4 {[%clk 0:03:00]}  d5 {[%clk 0:03:00]} 3. e5 {[%clk 0:03:00]}  c5 {[%clk 0:03:00]} 4. c3 {[%clk 0:03:01]}  Nc6 {[%clk 0:03:00]} 5. Nf3 {[%clk 0:03:01]}  Bd7 {[%clk 0:03:01]} 6. Bd3 {[%clk 0:03:00]}  Rc8 {[%clk 0:03:01]} 7. dxc5 {[%clk 0:02:57]}  Bxc5 {[%clk 0:03:00]} 8. b4 {[%clk 0:02:58]}  Bb6 {[%clk 0:02:59]} 9. O-O {[%clk 0:02:58]}  Nge7 {[%clk 0:02:41]} 10. a4 {[%clk 0:02:58]}  Ng6 {[%clk 0:02:39]} 11. a5 {[%clk 0:02:57]}  Bc7 {[%clk 0:02:38]} 12. Bxg6 {[%clk 0:02:55]}  hxg6 {[%clk 0:02:38]} 13. Re1 {[%clk 0:02:46]}  f6 {[%clk 0:01:42]} 14. Qd3 {[%clk 0:02:44]}  Kf7 {[%clk 0:01:26]} 15. Bf4 {[%clk 0:02:32]}  g5 {[%clk 0:01:25]} 16. Bg3 {[%clk 0:02:24]}  g4 {[%clk 0:01:23]} 17. Nh4 {[%clk 0:01:57]}  f5 {[%clk 0:01:23]} 18. Nxf5 {[%clk 0:00:48]}  exf5 {[%clk 0:01:24]} 19. Nd2 {[%clk 0:00:41]}  Be6 {[%clk 0:01:24]} 20. Nb3 {[%clk 0:00:41]}  b6 {[%clk 0:01:18]} 21. axb6 {[%clk 0:00:34]}  axb6 {[%clk 0:01:19]} 22. b5 {[%clk 0:00:34]}  Na5 {[%clk 0:01:04]} 23. Nd4 {[%clk 0:00:34]}  Qe7 {[%clk 0:00:55]} 24. f4 {[%clk 0:00:21]}  g5 {[%clk 0:00:27]} 25. Nxf5 {[%clk 0:00:17]}  Bxf5 {[%clk 0:00:21]} 26. Qxf5+ {[%clk 0:00:18]}  Kg7 {[%clk 0:00:19]} 27. fxg5 {[%clk 0:00:15]}  Rcf8 {[%clk 0:00:18]} 28. Qxg4 {[%clk 0:00:15]}  Nc4 {[%clk 0:00:15]} 29. Qd4 {[%clk 0:00:13]}  Qe6 {[%clk 0:00:13]} 30. Ra7 {[%clk 0:00:12]}  Rf7 {[%clk 0:00:13]} 31. g6 {[%clk 0:00:11]}  Kxg6 {[%clk 0:00:13]} 32. h3 {[%clk 0:00:09]}  Rhf8 {[%clk 0:00:12]} 33. Kh2 {[%clk 0:00:08]}  Kg7 {[%clk 0:00:05]} 34. Qh4 {[%clk 0:00:06]}  Qg6 {[%clk 0:00:02]} 35. Rxc7 {[%clk 0:00:03]}  Rxc7 {[%clk 0:00:02]} 36. e6 {[%clk 0:00:04]} 1-0

[Event "January 9 Early 2024"]
[Site "https://www.chess.com"]
[Date "2024.01.11"]
[Round "4"]
[White "Buscar, Michael"]
[Black "Bournel, Antoine"]
[Result "1-0"]
[Board "206"]
[TimeControl "180+1"]
[WhiteFideId "2603616"]
[BlackFideId "26093553"]
[WhiteElo "2418"]
[BlackElo "2556"]
[WhiteTeam "CAN"]
[BlackTeam "FRA"]
[WhiteClock "0:00:17"]
[BlackClock "0:00:01"]

1. d4 {[%clk 0:03:00]}  g6 {[%clk 0:02:58]} 2. Nf3 {[%clk 0:02:59]}  Bg7 {[%clk 0:02:59]} 3. g3 {[%clk 0:03:00]}  b6 {[%clk 0:02:57]} 4. Bg2 {[%clk 0:03:00]}  Bb7 {[%clk 0:02:57]} 5. O-O {[%clk 0:03:00]}  d6 {[%clk 0:02:57]} 6. a4 {[%clk 0:02:56]}  c5 {[%clk 0:02:47]} 7. c3 {[%clk 0:02:54]}  Nf6 {[%clk 0:02:43]} 8. a5 {[%clk 0:02:51]}  O-O {[%clk 0:02:39]} 9. axb6 {[%clk 0:02:48]}  axb6 {[%clk 0:02:40]} 10. Rxa8 {[%clk 0:02:44]}  Bxa8 {[%clk 0:02:41]} 11. Na3 {[%clk 0:02:40]}  Qd7 {[%clk 0:02:30]} 12. Qb3 {[%clk 0:02:02]}  Qa7 {[%clk 0:02:29]} 13. Nb5 {[%clk 0:01:45]}  Qa5 {[%clk 0:02:28]} 14. Nc7 {[%clk 0:01:38]}  Be4 {[%clk 0:02:13]} 15. Nd2 {[%clk 0:01:33]}  Bxg2 {[%clk 0:02:11]} 16. Kxg2 {[%clk 0:01:34]}  Nbd7 {[%clk 0:01:55]} 17. Nc4 {[%clk 0:01:21]}  Qa7 {[%clk 0:01:53]} 18. Nb5 {[%clk 0:01:16]}  Qa6 {[%clk 0:01:49]} 19. Bg5 {[%clk 0:01:00]}  Rc8 {[%clk 0:01:44]} 20. e3 {[%clk 0:00:42]}  Bf8 {[%clk 0:01:41]} 21. Bxf6 {[%clk 0:00:35]}  Nxf6 {[%clk 0:01:33]} 22. Nba3 {[%clk 0:00:35]}  Rb8 {[%clk 0:01:25]} 23. Ra1 {[%clk 0:00:35]}  b5 {[%clk 0:01:18]} 24. Nd2 {[%clk 0:00:30]}  e6 {[%clk 0:01:09]} 25. Nc2 {[%clk 0:00:29]}  Qc6+ {[%clk 0:01:06]} 26. Kg1 {[%clk 0:00:29]}  h5 {[%clk 0:01:03]} 27. h4 {[%clk 0:00:23]}  Ng4 {[%clk 0:00:57]} 28. Ne1 {[%clk 0:00:20]}  Bh6 {[%clk 0:00:53]} 29. Qd1 {[%clk 0:00:20]}  b4 {[%clk 0:00:50]} 30. Qf3 {[%clk 0:00:20]}  Qxf3 {[%clk 0:00:44]} 31. Ndxf3 {[%clk 0:00:18]}  bxc3 {[%clk 0:00:38]} 32. bxc3 {[%clk 0:00:19]}  d5 {[%clk 0:00:34]} 33. dxc5 {[%clk 0:00:18]}  Bf8 {[%clk 0:00:32]} 34. Nd3 {[%clk 0:00:17]}  Rb3 {[%clk 0:00:27]} 35. Rc1 {[%clk 0:00:17]}  Nf6 {[%clk 0:00:18]} 36. Nd4 {[%clk 0:00:17]}  Rb8 {[%clk 0:00:15]} 37. c6 {[%clk 0:00:17]}  Ne4 {[%clk 0:00:12]} 38. Ne5 {[%clk 0:00:17]}  Nd6 {[%clk 0:00:08]} 39. Nd7 {[%clk 0:00:17]}  Rc8 {[%clk 0:00:08]} 40. Rb1 {[%clk 0:00:16]}  Nc4 {[%clk 0:00:05]} 41. Rb8 {[%clk 0:00:15]}  Rxb8 {[%clk 0:00:03]} 42. Nxb8 {[%clk 0:00:16]}  Bd6 {[%clk 0:00:03]} 43. Nd7 {[%clk 0:00:16]}  Na5 {[%clk 0:00:02]} 44. Nb5 {[%clk 0:00:16]}  Bb8 {[%clk 0:00:01]} 45. c7 {[%clk 0:00:16]}  Bxc7 {[%clk 0:00:01]} 46. Nxc7 {[%clk 0:00:17]} 1-0

[Event "January 9 Early 2024"]
[Site "https://www.chess.com"]
[Date "2024.01.11"]
[Round "4"]
[White "Petersson, Kjell"]
[Black "Morales Garcia, Sergio Joshafatt"]
[Result "0-1"]
[Board "208"]
[TimeControl "180+1"]
[WhiteFideId "1705148"]
[BlackFideId "5106249"]
[WhiteElo "2133"]
[BlackElo "2443"]
[WhiteTeam "SWE"]
[BlackTeam "MEX"]
[WhiteClock "0:00:10"]
[BlackClock "0:00:32"]

1. d4 {[%clk 0:03:00]}  d5 {[%clk 0:02:59]} 2. Bf4 {[%clk 0:03:01]}  Nf6 {[%clk 0:02:58]} 3. e3 {[%clk 0:03:01]}  c5 {[%clk 0:02:59]} 4. Nd2 {[%clk 0:03:00]}  e6 {[%clk 0:02:59]} 5. c3 {[%clk 0:02:56]}  Bd6 {[%clk 0:03:00]} 6. Bg3 {[%clk 0:02:55]}  O-O {[%clk 0:02:58]} 7. Ngf3 {[%clk 0:02:53]}  Qc7 {[%clk 0:02:59]} 8. Bxd6 {[%clk 0:02:52]}  Qxd6 {[%clk 0:02:58]} 9. Ne5 {[%clk 0:02:52]}  Nc6 {[%clk 0:02:55]} 10. f4 {[%clk 0:02:53]}  Nd7 {[%clk 0:02:54]} 11. Bd3 {[%clk 0:02:49]}  Ne7 {[%clk 0:02:25]} 12. O-O {[%clk 0:02:32]}  f6 {[%clk 0:02:22]} 13. Nxd7 {[%clk 0:02:30]}  Bxd7 {[%clk 0:02:22]} 14. Nf3 {[%clk 0:02:26]}  Nc6 {[%clk 0:02:16]} 15. Qb1 {[%clk 0:02:09]}  f5 {[%clk 0:02:08]} 16. Ne5 {[%clk 0:02:08]}  Nxe5 {[%clk 0:02:07]} 17. fxe5 {[%clk 0:02:07]}  Qe7 {[%clk 0:02:06]} 18. Qe1 {[%clk 0:02:03]}  c4 {[%clk 0:02:05]} 19. Be2 {[%clk 0:01:58]}  b5 {[%clk 0:02:02]} 20. a3 {[%clk 0:01:57]}  a5 {[%clk 0:02:02]} 21. Rf3 {[%clk 0:01:49]}  b4 {[%clk 0:02:01]} 22. axb4 {[%clk 0:01:48]}  axb4 {[%clk 0:02:01]} 23. Rxa8 {[%clk 0:01:36]}  Rxa8 {[%clk 0:02:02]} 24. Rf1 {[%clk 0:01:25]}  bxc3 {[%clk 0:01:56]} 25. bxc3 {[%clk 0:01:25]}  Qa3 {[%clk 0:01:52]} 26. Qc1 {[%clk 0:01:24]}  Qxc1 {[%clk 0:01:42]} 27. Rxc1 {[%clk 0:01:25]}  Ra2 {[%clk 0:01:33]} 28. Kf1 {[%clk 0:01:26]}  Kf7 {[%clk 0:01:29]} 29. Ke1 {[%clk 0:01:24]}  Ba4 {[%clk 0:01:26]} 30. g3 {[%clk 0:01:15]}  Kg6 {[%clk 0:01:25]} 31. h3 {[%clk 0:01:15]}  Kf7 {[%clk 0:01:23]} 32. Kf1 {[%clk 0:01:04]}  g5 {[%clk 0:01:22]} 33. Bh5+ {[%clk 0:00:58]}  Kg7 {[%clk 0:01:19]} 34. Kg1 {[%clk 0:00:56]}  Bb3 {[%clk 0:01:13]} 35. g4 {[%clk 0:00:45]}  Bc2 {[%clk 0:00:58]} 36. gxf5 {[%clk 0:00:41]}  Bxf5 {[%clk 0:00:56]} 37. Bg4 {[%clk 0:00:41]}  Kg6 {[%clk 0:00:52]} 38. Kf1 {[%clk 0:00:31]}  h5 {[%clk 0:00:50]} 39. Bxf5+ {[%clk 0:00:31]}  Kxf5 {[%clk 0:00:51]} 40. Rb1 {[%clk 0:00:26]}  Rc2 {[%clk 0:00:48]} 41. Rb6 {[%clk 0:00:27]}  Rxc3 {[%clk 0:00:47]} 42. Ke2 {[%clk 0:00:26]}  Rc2+ {[%clk 0:00:46]} 43. Kf3 {[%clk 0:00:19]}  g4+ {[%clk 0:00:45]} 44. hxg4+ {[%clk 0:00:18]}  hxg4+ {[%clk 0:00:46]} 45. Kg3 {[%clk 0:00:18]}  Re2 {[%clk 0:00:44]} 46. Rb8 {[%clk 0:00:16]}  Rxe3+ {[%clk 0:00:43]} 47. Kf2 {[%clk 0:00:17]}  Rf3+ {[%clk 0:00:42]} 48. Ke2 {[%clk 0:00:16]}  c3 {[%clk 0:00:38]} 49. Rf8+ {[%clk 0:00:16]}  Ke4 {[%clk 0:00:38]} 50. Rg8 {[%clk 0:00:15]}  Rf4 {[%clk 0:00:33]} 51. Kd1 {[%clk 0:00:13]}  Kxd4 {[%clk 0:00:32]} 52. Rg6 {[%clk 0:00:12]}  Kxe5 {[%clk 0:00:32]} 53. Rg5+ {[%clk 0:00:12]}  Ke4 {[%clk 0:00:31]} 54. Kc2 {[%clk 0:00:10]}  d4 {[%clk 0:00:32]} 55. Rg6 {[%clk 0:00:10]}  e5 {[%clk 0:00:32]} 0-1